[Event "Late-Titled-Tuesday-Blitz-January-23-2024"]
[Site "Chess.com"]
[Date "2024.01.23"]
[Round "5"]
[White "emeli_chess"]
[Black "rionelG"]
[Result "1-0"]
[WhiteElo "2458"]
[BlackElo "2265"]
[TimeControl "180+1"]
[EndTime "14:54:49 PST"]
[Termination "emeli_chess won by resignation"]

1. d4 {[%clk 0:03:00.9]} 1... d5 {[%clk 0:02:58.3]} 2. c4 {[%clk 0:03:00.1]}
2... e6 {[%clk 0:02:58.6]} 3. Nc3 {[%clk 0:03:00]} 3... Nf6 {[%clk 0:02:54]} 4.
cxd5 {[%clk 0:02:59.9]} 4... exd5 {[%clk 0:02:52.6]} 5. Bg5 {[%clk 0:02:59.7]}
5... c6 {[%clk 0:02:52.8]} 6. Qc2 {[%clk 0:02:59.2]} 6... Be7 {[%clk 0:02:51.6]}
7. e3 {[%clk 0:02:58.9]} 7... O-O {[%clk 0:02:50.2]} 8. Bd3 {[%clk 0:02:58.9]}
8... h6 {[%clk 0:02:48.2]} 9. Bh4 {[%clk 0:02:58.7]} 9... Re8 {[%clk 0:02:48]}
10. Nge2 {[%clk 0:02:57.6]} 10... Ne4 {[%clk 0:02:43.9]} 11. Bxe7 {[%clk
0:02:47.4]} 11... Qxe7 {[%clk 0:02:44.8]} 12. O-O {[%clk 0:02:47]} 12... Bf5
{[%clk 0:02:40.3]} 13. Rae1 {[%clk 0:02:45.6]} 13... Qg5 {[%clk 0:01:56.5]} 14.
Ng3 {[%clk 0:02:39.8]} 14... Nxg3 {[%clk 0:01:54.9]} 15. hxg3 {[%clk 0:02:37.9]}
15... Bxd3 {[%clk 0:01:32.6]} 16. Qxd3 {[%clk 0:02:37.3]} 16... Nd7 {[%clk
0:01:31.7]} 17. e4 {[%clk 0:02:31.2]} 17... dxe4 {[%clk 0:01:28.1]} 18. Nxe4
{[%clk 0:02:30.9]} 18... Qg6 {[%clk 0:01:26.7]} 19. Nc5 {[%clk 0:02:07.2]} 19...
Qxd3 {[%clk 0:01:25.7]} 20. Nxd3 {[%clk 0:02:06.8]} 20... Nf6 {[%clk 0:01:05.8]}
21. Rxe8+ {[%clk 0:01:59.1]} 21... Rxe8 {[%clk 0:01:05.5]} 22. Re1 {[%clk
0:01:58.9]} 22... Rxe1+ {[%clk 0:01:04.6]} 23. Nxe1 {[%clk 0:01:59.1]} 23... Kf8
{[%clk 0:01:02.2]} 24. f3 {[%clk 0:01:59]} 24... Ke7 {[%clk 0:01:02.7]} 25. Kf2
{[%clk 0:01:59.2]} 25... Kd6 {[%clk 0:01:03.3]} 26. Ke3 {[%clk 0:01:57.8]} 26...
Nd5+ {[%clk 0:01:02.1]} 27. Ke4 {[%clk 0:01:52.5]} 27... g6 {[%clk 0:01:00.1]}
28. g4 {[%clk 0:01:51.3]} 28... h5 {[%clk 0:00:58.1]} 29. gxh5 {[%clk
0:01:47.8]} 29... f5+ {[%clk 0:00:57.1]} 30. Kd3 {[%clk 0:01:44.1]} 30... gxh5
{[%clk 0:00:57.1]} 31. a3 {[%clk 0:01:43.1]} 31... h4 {[%clk 0:00:53]} 32. b4
{[%clk 0:01:40.4]} 32... b6 {[%clk 0:00:32.7]} 33. Kc4 {[%clk 0:01:28.1]} 33...
a6 {[%clk 0:00:24.8]} 34. Kd3 {[%clk 0:01:11.2]} 34... Nf4+ {[%clk 0:00:13.2]}
35. Ke3 {[%clk 0:01:08.5]} 35... Nxg2+ {[%clk 0:00:13.6]} 36. Nxg2 {[%clk
0:01:07.6]} 36... h3 {[%clk 0:00:14.3]} 37. Nh4 {[%clk 0:01:00.2]} 37... h2
{[%clk 0:00:12.3]} 38. Nxf5+ {[%clk 0:00:59.9]} 38... Kd5 {[%clk 0:00:12.6]} 39.
Ng3 {[%clk 0:01:00.1]} 39... Kc4 {[%clk 0:00:05.8]} 40. f4 {[%clk 0:00:57.7]}
40... c5 {[%clk 0:00:02.4]} 41. dxc5 {[%clk 0:00:56.1]} 41... bxc5 {[%clk
0:00:02.5]} 42. bxc5 {[%clk 0:00:56.2]} 42... Kxc5 {[%clk 0:00:03.4]} 43. Ke4
{[%clk 0:00:53.4]} 43... Kd6 {[%clk 0:00:03.8]} 44. f5 {[%clk 0:00:53]} 44...
Ke7 {[%clk 0:00:03.8]} 45. Ke5 {[%clk 0:00:53.2]} 45... Kf7 {[%clk 0:00:04.5]}
46. f6 {[%clk 0:00:53.3]} 46... a5 {[%clk 0:00:03.6]} 47. a4 {[%clk 0:00:52.8]}
47... Kf8 {[%clk 0:00:03.5]} 48. Ke6 {[%clk 0:00:44.7]} 48... Ke8 {[%clk
0:00:03.5]} 49. Nh1 {[%clk 0:00:44.3]} 49... Kf8 {[%clk 0:00:03.1]} 50. f7
{[%clk 0:00:44.7]} 50... Kg7 {[%clk 0:00:03]} 51. Ke7 {[%clk 0:00:45]} 1-0

[Event "Late-Titled-Tuesday-Blitz-January-23-2024"]
[Site "Chess.com"]
[Date "2024.01.23"]
[Round "5"]
[White "Noki102"]
[Black "Doomfist26"]
[Result "0-1"]
[WhiteElo "2447"]
[BlackElo "2603"]
[TimeControl "180+1"]
[EndTime "14:54:52 PST"]
[Termination "Doomfist26 won by checkmate"]

1. Nf3 {[%clk 0:03:00.9]} 1... Nf6 {[%clk 0:02:58.8]} 2. g3 {[%clk 0:02:59.2]}
2... d5 {[%clk 0:02:59]} 3. Bg2 {[%clk 0:03:00.1]} 3... Nc6 {[%clk 0:02:59.4]}
4. d4 {[%clk 0:02:52.8]} 4... b5 {[%clk 0:02:59.2]} 5. Ne5 {[%clk 0:02:46.1]}
5... Bb7 {[%clk 0:02:49.3]} 6. O-O {[%clk 0:02:43.6]} 6... e6 {[%clk 0:02:47.6]}
7. Nc3 {[%clk 0:02:37.8]} 7... b4 {[%clk 0:02:43.7]} 8. Na4 {[%clk 0:02:37.5]}
8... Nxe5 {[%clk 0:02:43.8]} 9. dxe5 {[%clk 0:02:36.1]} 9... Nd7 {[%clk
0:02:44.5]} 10. f4 {[%clk 0:02:04]} 10... Be7 {[%clk 0:02:32.1]} 11. c4 {[%clk
0:01:56.6]} 11... bxc3 {[%clk 0:02:27.6]} 12. Nxc3 {[%clk 0:01:55.9]} 12... O-O
{[%clk 0:02:28.2]} 13. Be3 {[%clk 0:01:44.8]} 13... c5 {[%clk 0:02:26.9]} 14.
Bf2 {[%clk 0:01:45.3]} 14... Rb8 {[%clk 0:02:19.8]} 15. Rc1 {[%clk 0:01:42.2]}
15... Nb6 {[%clk 0:02:07.5]} 16. Nb5 {[%clk 0:01:37.7]} 16... Ba6 {[%clk
0:01:57.9]} 17. Nd6 {[%clk 0:01:34.8]} 17... Bxd6 {[%clk 0:01:48.9]} 18. exd6
{[%clk 0:01:34.5]} 18... c4 {[%clk 0:01:44.1]} 19. Bc5 {[%clk 0:01:28.8]} 19...
Qd7 {[%clk 0:01:37.4]} 20. Qd4 {[%clk 0:01:19.5]} 20... Na4 {[%clk 0:01:33.6]}
21. Ba3 {[%clk 0:01:17.9]} 21... Rfc8 {[%clk 0:01:07.6]} 22. f5 {[%clk
0:01:17.7]} 22... c3 {[%clk 0:01:03.6]} 23. b3 {[%clk 0:00:58.7]} 23... Nb6
{[%clk 0:00:46.2]} 24. f6 {[%clk 0:00:50.1]} 24... Bxe2 {[%clk 0:00:40.1]} 25.
Rf2 {[%clk 0:00:48.6]} 25... Bh5 {[%clk 0:00:40.2]} 26. fxg7 {[%clk 0:00:42.7]}
26... Bg6 {[%clk 0:00:36.7]} 27. Rxc3 {[%clk 0:00:40.9]} 27... Rxc3 {[%clk
0:00:35.2]} 28. Qxc3 {[%clk 0:00:41.8]} 28... Rc8 {[%clk 0:00:35.3]} 29. Qf6
{[%clk 0:00:35.8]} 29... a5 {[%clk 0:00:18.7]} 30. h4 {[%clk 0:00:35.1]} 30...
a4 {[%clk 0:00:17.7]} 31. Qd4 {[%clk 0:00:23.9]} 31... Rc6 {[%clk 0:00:11]} 32.
g4 {[%clk 0:00:20.7]} 32... axb3 {[%clk 0:00:10.8]} 33. axb3 {[%clk 0:00:21]}
33... Nc8 {[%clk 0:00:09.7]} 34. h5 {[%clk 0:00:20.1]} 34... Bc2 {[%clk
0:00:10.3]} 35. Qb2 {[%clk 0:00:08.4]} 35... Bd3 {[%clk 0:00:09.6]} 36. Qd2
{[%clk 0:00:08.4]} 36... Ba6 {[%clk 0:00:09.1]} 37. Qa5 {[%clk 0:00:08.5]} 37...
Nxd6 {[%clk 0:00:08.4]} 38. Bxd6 {[%clk 0:00:04.2]} 38... Qxd6 {[%clk
0:00:09.3]} 39. g5 {[%clk 0:00:03.7]} 39... Rc1+ {[%clk 0:00:09.2]} 40. Bf1
{[%clk 0:00:03.9]} 40... Qg3+ {[%clk 0:00:09.3]} 41. Rg2 {[%clk 0:00:03.8]}
41... Rxf1# {[%clk 0:00:08.2]} 0-1

[Event "Late-Titled-Tuesday-Blitz-January-23-2024"]
[Site "Chess.com"]
[Date "2024.01.23"]
[Round "5"]
[White "cthulhuuu"]
[Black "krzyzan94"]
[Result "1-0"]
[WhiteElo "2479"]
[BlackElo "2770"]
[TimeControl "180+1"]
[EndTime "14:54:55 PST"]
[Termination "cthulhuuu won on time"]

1. e4 {[%clk 0:03:00]} 1... c6 {[%clk 0:02:59.2]} 2. d3 {[%clk 0:03:00]} 2... d5
{[%clk 0:02:59.4]} 3. Nd2 {[%clk 0:03:00.8]} 3... g6 {[%clk 0:02:57.5]} 4. Ngf3
{[%clk 0:03:01.2]} 4... Bg7 {[%clk 0:02:58.1]} 5. g3 {[%clk 0:03:01.7]} 5... e6
{[%clk 0:02:56.6]} 6. Bg2 {[%clk 0:03:01.7]} 6... Nd7 {[%clk 0:02:57.3]} 7. O-O
{[%clk 0:03:02.4]} 7... Ne7 {[%clk 0:02:57.8]} 8. Re1 {[%clk 0:03:03.1]} 8...
Qc7 {[%clk 0:02:56]} 9. Qe2 {[%clk 0:03:02.3]} 9... O-O {[%clk 0:02:54.3]} 10.
e5 {[%clk 0:03:00.8]} 10... c5 {[%clk 0:02:45.6]} 11. Nf1 {[%clk 0:03:01.2]}
11... Nc6 {[%clk 0:02:41.2]} 12. Bf4 {[%clk 0:03:01]} 12... Nd4 {[%clk
0:02:38.7]} 13. Nxd4 {[%clk 0:03:00.6]} 13... cxd4 {[%clk 0:02:39.6]} 14. h4
{[%clk 0:02:59.9]} 14... Re8 {[%clk 0:02:34.6]} 15. Rac1 {[%clk 0:02:55.4]}
15... Qa5 {[%clk 0:02:07.8]} 16. a3 {[%clk 0:02:44.7]} 16... f6 {[%clk
0:02:05.8]} 17. exf6 {[%clk 0:02:39.4]} 17... Bxf6 {[%clk 0:02:04.2]} 18. Nd2
{[%clk 0:02:24.1]} 18... Qb5 {[%clk 0:01:29]} 19. Nb3 {[%clk 0:02:13.5]} 19...
a5 {[%clk 0:01:28.9]} 20. a4 {[%clk 0:02:09.4]} 20... Qc6 {[%clk 0:01:22.9]} 21.
h5 {[%clk 0:01:48.8]} 21... Kf7 {[%clk 0:01:03.2]} 22. Qf3 {[%clk 0:01:40.5]}
22... Qxa4 {[%clk 0:00:40.9]} 23. Bg5 {[%clk 0:01:23.8]} 23... Qb4 {[%clk
0:00:35.1]} 24. g4 {[%clk 0:00:51.8]} 24... Qe7 {[%clk 0:00:03.9]} 25. Nxd4
{[%clk 0:00:51.6]} 25... Ra6 {[%clk 0:00:04.5]} 26. Bh6 {[%clk 0:00:15.6]} 26...
Kg8 {[%clk 0:00:04.3]} 27. Nxe6 {[%clk 0:00:12.4]} 27... Rxe6 {[%clk 0:00:03.8]}
28. Qxd5 {[%clk 0:00:12.9]} 28... Nb6 {[%clk 0:00:03.8]} 29. Qa2 {[%clk
0:00:10.9]} 29... Qf7 {[%clk 0:00:03.3]} 30. Rxe6 {[%clk 0:00:05.7]} 30... Bxe6
{[%clk 0:00:04.2]} 31. Qxa5 {[%clk 0:00:06]} 31... Nd5 {[%clk 0:00:04.4]} 32.
Re1 {[%clk 0:00:05.6]} 32... b6 {[%clk 0:00:02.9]} 33. Qb5 {[%clk 0:00:04.7]}
33... Nc7 {[%clk 0:00:02.4]} 34. Qc6 {[%clk 0:00:05.1]} 34... Bd5 {[%clk
0:00:01.9]} 35. Rxe8+ {[%clk 0:00:04.3]} 35... Qxe8 {[%clk 0:00:01.1]} 36. Bxd5+
{[%clk 0:00:03.8]} 1-0

[Event "Late-Titled-Tuesday-Blitz-January-23-2024"]
[Site "Chess.com"]
[Date "2024.01.23"]
[Round "5"]
[White "Roedor"]
[Black "dosto07"]
[Result "1-0"]
[WhiteElo "2348"]
[BlackElo "2532"]
[TimeControl "180+1"]
[EndTime "14:54:55 PST"]
[Termination "Roedor won on time"]

1. c4 {[%clk 0:02:57]} 1... e5 {[%clk 0:02:59.1]} 2. Nc3 {[%clk 0:02:56.1]} 2...
Nf6 {[%clk 0:02:59.6]} 3. g3 {[%clk 0:02:56]} 3... Nc6 {[%clk 0:02:58.8]} 4. Bg2
{[%clk 0:02:55.9]} 4... Bb4 {[%clk 0:02:59.4]} 5. Nd5 {[%clk 0:02:55.6]} 5...
Bc5 {[%clk 0:02:58.4]} 6. e3 {[%clk 0:02:54.9]} 6... O-O {[%clk 0:02:56.3]} 7.
Ne2 {[%clk 0:02:54.9]} 7... Nxd5 {[%clk 0:02:52.5]} 8. cxd5 {[%clk 0:02:55]}
8... Ne7 {[%clk 0:02:53]} 9. O-O {[%clk 0:02:54.6]} 9... d6 {[%clk 0:02:52.2]}
10. d4 {[%clk 0:02:48.2]} 10... Bb6 {[%clk 0:02:47.6]} 11. b4 {[%clk 0:02:44.4]}
11... Bd7 {[%clk 0:02:37.5]} 12. Bb2 {[%clk 0:02:42.8]} 12... Ng6 {[%clk
0:02:24.1]} 13. h4 {[%clk 0:02:27.9]} 13... f6 {[%clk 0:02:06.3]} 14. Qc2 {[%clk
0:02:15.5]} 14... Qc8 {[%clk 0:02:04.5]} 15. a4 {[%clk 0:02:09.5]} 15... a5
{[%clk 0:02:03.7]} 16. bxa5 {[%clk 0:02:09.1]} 16... Rxa5 {[%clk 0:02:01.8]} 17.
Bc3 {[%clk 0:02:08.1]} 17... Ra8 {[%clk 0:02:01.3]} 18. a5 {[%clk 0:02:08.3]}
18... Ba7 {[%clk 0:02:00.1]} 19. Rfc1 {[%clk 0:02:06.1]} 19... Bh3 {[%clk
0:01:58.2]} 20. Be4 {[%clk 0:01:56.1]} 20... f5 {[%clk 0:01:51.3]} 21. Bh1
{[%clk 0:01:54.5]} 21... e4 {[%clk 0:01:39.4]} 22. h5 {[%clk 0:01:49.9]} 22...
Ne7 {[%clk 0:01:39.2]} 23. Nf4 {[%clk 0:01:49.5]} 23... Bg4 {[%clk 0:01:37.5]}
24. Bb4 {[%clk 0:01:47]} 24... Qe8 {[%clk 0:01:11.1]} 25. Qxc7 {[%clk
0:01:43.2]} 25... Rc8 {[%clk 0:00:56.8]} 26. Qxb7 {[%clk 0:01:39.6]} 26... Rxc1+
{[%clk 0:00:49.9]} 27. Rxc1 {[%clk 0:01:40.5]} 27... Bb8 {[%clk 0:00:50.1]} 28.
a6 {[%clk 0:01:34.6]} 28... g5 {[%clk 0:00:42]} 29. Ne6 {[%clk 0:01:30]} 29...
Rf7 {[%clk 0:00:32.4]} 30. a7 {[%clk 0:01:28.9]} 30... Bxa7 {[%clk 0:00:32.2]}
31. Qxa7 {[%clk 0:01:29.8]} 31... Nxd5 {[%clk 0:00:31.4]} 32. Nc7 {[%clk
0:00:47.6]} 32... Nxb4 {[%clk 0:00:28.9]} 33. Nxe8 {[%clk 0:00:44]} 33... Rxa7
{[%clk 0:00:28.8]} 34. Nf6+ {[%clk 0:00:44.4]} 34... Kg7 {[%clk 0:00:27.5]} 35.
Nxg4 {[%clk 0:00:44.5]} 35... fxg4 {[%clk 0:00:27.6]} 36. Bxe4 {[%clk
0:00:44.9]} 36... d5 {[%clk 0:00:27]} 37. Bf5 {[%clk 0:00:41.1]} 37... h6 {[%clk
0:00:19.7]} 38. Bxg4 {[%clk 0:00:33]} 38... Ra2 {[%clk 0:00:19.5]} 39. Bf5
{[%clk 0:00:31.4]} 39... Kf6 {[%clk 0:00:17.4]} 40. g4 {[%clk 0:00:30.9]} 40...
Ke7 {[%clk 0:00:12]} 41. Rc7+ {[%clk 0:00:30.1]} 41... Kd6 {[%clk 0:00:11.6]}
42. Rh7 {[%clk 0:00:30.2]} 42... Nc2 {[%clk 0:00:08.7]} 43. Bxc2 {[%clk
0:00:29.2]} 43... Rxc2 {[%clk 0:00:08.9]} 44. Rxh6+ {[%clk 0:00:29.9]} 44... Kc7
{[%clk 0:00:08.6]} 45. Rg6 {[%clk 0:00:29.3]} 45... Kd8 {[%clk 0:00:06.3]} 46.
h6 {[%clk 0:00:29.2]} 46... Rc7 {[%clk 0:00:06.7]} 47. Rg7 {[%clk 0:00:28.7]}
47... Rc6 {[%clk 0:00:05.6]} 48. h7 {[%clk 0:00:28.2]} 48... Rh6 {[%clk
0:00:06.2]} 49. Rg8+ {[%clk 0:00:28.6]} 49... Ke7 {[%clk 0:00:06.7]} 50. h8=Q
{[%clk 0:00:29.1]} 50... Rh7 {[%clk 0:00:04.8]} 51. Qxh7+ {[%clk 0:00:28.6]} 1-0

[Event "Late-Titled-Tuesday-Blitz-January-23-2024"]
[Site "Chess.com"]
[Date "2024.01.23"]
[Round "5"]
[White "TigrVShlyape"]
[Black "The_Machine04"]
[Result "1-0"]
[WhiteElo "2943"]
[BlackElo "2713"]
[TimeControl "180+1"]
[EndTime "14:54:57 PST"]
[Termination "TigrVShlyape won on time"]

1. d4 {[%clk 0:03:00.9]} 1... d6 {[%clk 0:02:58.5]} 2. Nf3 {[%clk 0:02:56.1]}
2... Nf6 {[%clk 0:02:56.4]} 3. Bf4 {[%clk 0:02:53.9]} 3... g6 {[%clk 0:02:54.8]}
4. h3 {[%clk 0:02:53.2]} 4... Bg7 {[%clk 0:02:55.2]} 5. c3 {[%clk 0:02:53.7]}
5... O-O {[%clk 0:02:56.1]} 6. Nbd2 {[%clk 0:02:53.7]} 6... Nc6 {[%clk 0:02:57]}
7. e4 {[%clk 0:02:53.8]} 7... Re8 {[%clk 0:02:54.1]} 8. Be2 {[%clk 0:02:45]}
8... e5 {[%clk 0:02:53.5]} 9. dxe5 {[%clk 0:02:44.9]} 9... Nxe5 {[%clk
0:02:53.2]} 10. Nxe5 {[%clk 0:02:44]} 10... dxe5 {[%clk 0:02:54.1]} 11. Bg5
{[%clk 0:02:37]} 11... Be6 {[%clk 0:02:53.1]} 12. O-O {[%clk 0:02:35.7]} 12...
c6 {[%clk 0:02:52.7]} 13. Qc2 {[%clk 0:02:32.9]} 13... Qc7 {[%clk 0:02:50.2]}
14. Bc4 {[%clk 0:02:28.7]} 14... h6 {[%clk 0:02:44.2]} 15. Be3 {[%clk
0:02:21.2]} 15... Rad8 {[%clk 0:02:41.7]} 16. Bxe6 {[%clk 0:02:20]} 16... Rxe6
{[%clk 0:02:42.6]} 17. a4 {[%clk 0:02:14.5]} 17... b6 {[%clk 0:02:35.4]} 18. Nc4
{[%clk 0:02:11.4]} 18... Re7 {[%clk 0:02:32.5]} 19. Rfd1 {[%clk 0:02:09.6]}
19... Red7 {[%clk 0:02:30.9]} 20. Rxd7 {[%clk 0:02:05.3]} 20... Rxd7 {[%clk
0:02:31.8]} 21. b4 {[%clk 0:01:59.8]} 21... Kh7 {[%clk 0:02:27.4]} 22. a5 {[%clk
0:01:57.7]} 22... b5 {[%clk 0:02:25.8]} 23. Nd2 {[%clk 0:01:57.3]} 23... a6
{[%clk 0:02:25.1]} 24. Nb3 {[%clk 0:01:51.1]} 24... Bf8 {[%clk 0:02:22]} 25. f3
{[%clk 0:01:42.9]} 25... Qd8 {[%clk 0:02:18.8]} 26. Bb6 {[%clk 0:01:41.9]} 26...
Qc8 {[%clk 0:02:11.7]} 27. Bc5 {[%clk 0:01:39.3]} 27... Bg7 {[%clk 0:02:05.9]}
28. Rd1 {[%clk 0:01:36.4]} 28... Rxd1+ {[%clk 0:02:04.3]} 29. Qxd1 {[%clk
0:01:36.3]} 29... Qd7 {[%clk 0:02:03.1]} 30. Qd6 {[%clk 0:01:36.1]} 30... Qxd6
{[%clk 0:02:02.1]} 31. Bxd6 {[%clk 0:01:36.3]} 31... Nd7 {[%clk 0:02:02.7]} 32.
Kf2 {[%clk 0:01:30.6]} 32... Kg8 {[%clk 0:01:55.8]} 33. Ke3 {[%clk 0:01:29.9]}
33... Bf8 {[%clk 0:01:52.4]} 34. Bxf8 {[%clk 0:01:28]} 34... Kxf8 {[%clk
0:01:53.3]} 35. g3 {[%clk 0:01:26.2]} 35... Ke7 {[%clk 0:01:52.8]} 36. f4 {[%clk
0:01:26.6]} 36... f6 {[%clk 0:01:49.8]} 37. h4 {[%clk 0:01:23]} 37... Kd6 {[%clk
0:01:41]} 38. f5 {[%clk 0:01:22.8]} 38... gxf5 {[%clk 0:01:19.7]} 39. exf5
{[%clk 0:01:22.3]} 39... Kd5 {[%clk 0:01:20.6]} 40. Nd2 {[%clk 0:01:20.2]} 40...
c5 {[%clk 0:01:20.2]} 41. g4 {[%clk 0:01:20.1]} 41... cxb4 {[%clk 0:01:15.8]}
42. cxb4 {[%clk 0:01:20.1]} 42... Nb8 {[%clk 0:01:14.8]} 43. Ne4 {[%clk
0:01:19.4]} 43... Nd7 {[%clk 0:00:55.2]} 44. Kd3 {[%clk 0:01:19.4]} 44... Kc6
{[%clk 0:00:55.5]} 45. Nc3 {[%clk 0:01:18.9]} 45... Kd6 {[%clk 0:00:38.5]} 46.
Ke4 {[%clk 0:01:18.7]} 46... Nb8 {[%clk 0:00:32.5]} 47. Nd5 {[%clk 0:01:17.7]}
47... Nd7 {[%clk 0:00:32]} 48. Nc3 {[%clk 0:01:00.1]} 48... Nb8 {[%clk
0:00:20.6]} 49. Kd3 {[%clk 0:00:58.1]} 49... Nd7 {[%clk 0:00:13.4]} 50. Ke3
{[%clk 0:00:57.2]} 50... Kc6 {[%clk 0:00:12.4]} 51. Ke4 {[%clk 0:00:52.5]} 51...
Kc7 {[%clk 0:00:11.4]} 52. Kd5 {[%clk 0:00:51.2]} 52... Kd8 {[%clk 0:00:10.4]}
53. Ke6 {[%clk 0:00:49.5]} 53... Ke8 {[%clk 0:00:10.4]} 54. Ne4 {[%clk
0:00:48.2]} 54... Kd8 {[%clk 0:00:10.7]} 55. g5 {[%clk 0:00:42.1]} 55... fxg5
{[%clk 0:00:10.1]} 56. hxg5 {[%clk 0:00:42.3]} 1-0

[Event "Late-Titled-Tuesday-Blitz-January-23-2024"]
[Site "Chess.com"]
[Date "2024.01.23"]
[Round "5"]
[White "M1711"]
[Black "StellarChess"]
[Result "1-0"]
[WhiteElo "2644"]
[BlackElo "2481"]
[TimeControl "180+1"]
[EndTime "14:54:59 PST"]
[Termination "M1711 won by checkmate"]

1. b3 {[%clk 0:03:00.9]} 1... b6 {[%clk 0:02:52.2]} 2. Bb2 {[%clk 0:03:01.8]}
2... Bb7 {[%clk 0:02:52.5]} 3. Nf3 {[%clk 0:02:58.3]} 3... Nf6 {[%clk
0:02:52.6]} 4. e3 {[%clk 0:02:52.1]} 4... e6 {[%clk 0:02:52.2]} 5. Be2 {[%clk
0:02:46.3]} 5... d5 {[%clk 0:02:51.9]} 6. O-O {[%clk 0:02:47]} 6... Nbd7 {[%clk
0:02:51.3]} 7. c4 {[%clk 0:02:47.1]} 7... Bd6 {[%clk 0:02:49]} 8. Nc3 {[%clk
0:02:44.2]} 8... a6 {[%clk 0:02:48.7]} 9. Rc1 {[%clk 0:02:37.5]} 9... O-O {[%clk
0:02:47.5]} 10. d3 {[%clk 0:02:27.8]} 10... Re8 {[%clk 0:02:40.5]} 11. Qc2
{[%clk 0:02:25.4]} 11... c5 {[%clk 0:02:37.8]} 12. e4 {[%clk 0:02:16.4]} 12...
d4 {[%clk 0:02:37]} 13. Nb1 {[%clk 0:02:14.3]} 13... e5 {[%clk 0:02:31.6]} 14.
Nbd2 {[%clk 0:02:08.6]} 14... Bf8 {[%clk 0:02:26.8]} 15. g3 {[%clk 0:02:04.4]}
15... Bc6 {[%clk 0:02:24.3]} 16. Nh4 {[%clk 0:02:03.1]} 16... g6 {[%clk
0:02:23.7]} 17. Rce1 {[%clk 0:01:56.6]} 17... Bd6 {[%clk 0:02:19.2]} 18. Ng2
{[%clk 0:01:50.4]} 18... Qc7 {[%clk 0:02:16.8]} 19. f4 {[%clk 0:01:49]} 19...
Kg7 {[%clk 0:02:02]} 20. Bc1 {[%clk 0:01:45.4]} 20... b5 {[%clk 0:01:59.4]} 21.
Nf3 {[%clk 0:01:34.3]} 21... b4 {[%clk 0:01:56.1]} 22. Nfh4 {[%clk 0:01:13.9]}
22... a5 {[%clk 0:01:46.1]} 23. fxe5 {[%clk 0:01:07.6]} 23... Nxe5 {[%clk
0:01:37.6]} 24. Qd2 {[%clk 0:00:39.1]} 24... Be7 {[%clk 0:01:23.8]} 25. Qh6+
{[%clk 0:00:35.9]} 25... Kg8 {[%clk 0:01:22.9]} 26. h3 {[%clk 0:00:29.5]} 26...
Ned7 {[%clk 0:01:11.4]} 27. g4 {[%clk 0:00:26]} 27... Bf8 {[%clk 0:01:08.7]} 28.
Qd2 {[%clk 0:00:17.7]} 28... Bd6 {[%clk 0:00:56.6]} 29. g5 {[%clk 0:00:17.1]}
29... Bh2+ {[%clk 0:00:56.6]} 30. Kh1 {[%clk 0:00:17.4]} 30... Nh5 {[%clk
0:00:56.6]} 31. Bxh5 {[%clk 0:00:16.7]} 31... gxh5 {[%clk 0:00:57.5]} 32. Qe2
{[%clk 0:00:14.4]} 32... Bg3 {[%clk 0:00:54.8]} 33. Qxh5 {[%clk 0:00:12.9]}
33... Nf8 {[%clk 0:00:49.3]} 34. Nf5 {[%clk 0:00:10]} 34... Bxe1 {[%clk
0:00:42.5]} 35. Nh6+ {[%clk 0:00:10.5]} 35... Kh8 {[%clk 0:00:40.5]} 36. Nxf7+
{[%clk 0:00:07]} 36... Kg8 {[%clk 0:00:40.6]} 37. Nh6+ {[%clk 0:00:07.3]} 37...
Kh8 {[%clk 0:00:40.7]} 38. Nxe1 {[%clk 0:00:06.2]} 38... Qg3 {[%clk 0:00:30.7]}
39. Bf4 {[%clk 0:00:05.4]} 39... Rxe4 {[%clk 0:00:27.9]} 40. Bxg3 {[%clk
0:00:02]} 40... Rh4+ {[%clk 0:00:26.7]} 41. Qf3 {[%clk 0:00:02.6]} 41... Bxf3+
{[%clk 0:00:23.2]} 42. Nxf3 {[%clk 0:00:03.5]} 42... Rxh3+ {[%clk 0:00:23.2]}
43. Kg2 {[%clk 0:00:04.2]} 43... Rh5 {[%clk 0:00:24.1]} 44. Ng4 {[%clk
0:00:03.2]} 44... Ng6 {[%clk 0:00:24.3]} 45. Nf6 {[%clk 0:00:03.6]} 45... a4
{[%clk 0:00:22]} 46. Nxh5 {[%clk 0:00:03.7]} 46... axb3 {[%clk 0:00:22.9]} 47.
axb3 {[%clk 0:00:04.2]} 47... Ra2+ {[%clk 0:00:23.7]} 48. Rf2 {[%clk 0:00:03.8]}
48... Ra3 {[%clk 0:00:24]} 49. Ne5 {[%clk 0:00:04.4]} 49... Rxb3 {[%clk
0:00:23.1]} 50. Nf7+ {[%clk 0:00:03.6]} 50... Kg8 {[%clk 0:00:23.1]} 51. Nh6+
{[%clk 0:00:04.5]} 51... Kh8 {[%clk 0:00:23]} 52. Be5+ {[%clk 0:00:04.5]} 52...
Nxe5 {[%clk 0:00:20.4]} 53. Rf8# {[%clk 0:00:04.7]} 1-0